fUSD/lending_fUSD_20260227
["ID","MTS","AMOUNT","RATE_DAILY","PERIOD"]
[406814340,1772205045128,-482.68275809,0.00014451,2]
[406814341,1772205045137,-482.68275809,0.00014451,2]
[406814342,1772205045147,-482.68275809,0.00014451,2]
[406814343,1772205045156,-482.68275807,0.00014451,2]
[406814344,1772205045165,-482.68275807,0.00014451,2]
[406814345,1772205045174,-649.0,0.00014492,2]
[406814346,1772205045184,-1613.0,0.00014493,2]
[406814347,1772205045193,-1763.0,0.00014493,2]
[406814348,1772205045202,-288.579889,0.00014535,7]
[406814349,1772205045212,-203.69193972,0.00014604,2]
[406814350,1772205045221,-192.715977,0.00014678,7]
[406814351,1772205045230,-39740.82213888,0.00014682,2]
[406814352,1772205045239,-500.0,0.00014704,2]
[406814353,1772205045248,-500.0,0.00014704,2]
[406814354,1772205045258,-500.0,0.00014704,2]
[406814355,1772205045267,-500.0,0.00014704,2]
[406814356,1772205045276,-500.0,0.00014704,2]
[406814357,1772205045285,-500.0,0.00014704,2]
[406814358,1772205045294,-500.0,0.00014704,2]
[406814359,1772205045303,-500.0,0.00014704,2]
[406814360,1772205045313,-500.0,0.00014704,2]
[406814361,1772205045322,-500.0,0.00014704,2]
[406814362,1772205045332,-500.0,0.00014704,2]
[406814363,1772205045341,-500.0,0.00014704,2]
[406814364,1772205045351,-500.0,0.00014704,2]
[406814365,1772205045360,-509.0,0.0001489,2]
[406814366,1772205045371,-250.0,0.00015,2]
[406814367,1772205045380,-823.45,0.00015068,2]
[406814368,1772205045390,-305.24,0.00015068,2]
[406814369,1772205045400,-16822.52954853,0.000152,2]
[406814370,1772205045409,-9999.99,0.0001531,2]
[406814371,1772205045418,-2657.75,0.0001531,2]
[406814372,1772205045427,-29999.99,0.0001531,2]
[406814373,1772205045437,-159.05,0.00015423,2]
[406814374,1772205045446,-1000.0,0.00015466,2]
[406814375,1772205045455,-39740.82213888,0.00015486,2]
[406814376,1772205045465,-305.24,0.00015753,2]
[406814377,1772205045474,-1838.0,0.00015942,2]
[406814378,1772205045484,-16822.52954853,0.000161,2]
[406814379,1772205045493,-23700.00884198,0.000162,5]
[406814380,1772205045503,-39740.82213888,0.00016291,2]
[406814381,1772205045513,-823.45,0.00016438,2]
[406814382,1772205045522,-305.24,0.00016438,2]
[406814383,1772205045531,-583.33,0.00016599,2]
[406814384,1772205045541,-500.0,0.00016599,2]
[406814385,1772205045550,-165.5,0.00016712,2]
[406814386,1772205045559,-300.0,0.00017,2]
[406814387,1772205045568,-32158.97035652,0.00017,2]
[406814388,1772205045577,-16822.52954853,0.00017,2]
[406814389,1772205045586,-1000.0,0.00017013,2]
[406814390,1772205045595,-39740.82213888,0.00017095,2]
[406814391,1772205045604,-10180.0,0.000177,30]
[406814392,1772205045613,-300.0,0.00017711,2]
[406814393,1772205045623,-1075.08672241,0.0001789,2]
[406814394,1772205045633,-622.35492984,0.000179,2]
[406814395,1772205045642,-39740.82213888,0.000179,2]
[406814396,1772205045651,-16822.52954853,0.000179,2]
[406814397,1772205045661,-500.82123681,0.00017973,2]
[406814398,1772205045670,-500.0,0.00017973,2]
[406814399,1772205045679,-500.0,0.00017973,2]
[406814400,1772205045689,-502.2190815,0.00017973,2]
[406814401,1772205045698,-500.0,0.00017973,2]
[406814402,1772205045711,-308.59204947,0.00017973,2]
[406814403,1772205045720,-500.0,0.00017973,2]
[406814404,1772205045729,-501.50601316,0.00017973,2]
[406814405,1772205045738,-504.17214118,0.00017973,2]
[406814406,1772205045747,-368.42176142,0.0001799,2]
[406814407,1772205045756,-159.05,0.00017993,2]
[406814408,1772205045765,-583.33,0.00017999,2]
[406814409,1772205045775,-583.33,0.00017999,2]
[406814410,1772205045784,-583.33,0.00017999,2]
[406814411,1772205045793,-583.33,0.00017999,2]
[406814412,1772205045802,-583.33,0.00017999,2]
[406814413,1772205045811,-583.33,0.00017999,2]
[406814414,1772205045821,-583.33,0.00017999,2]
[406814415,1772205045829,-583.33,0.00017999,2]
[406814416,1772205045839,-583.33,0.00017999,2]
[406814417,1772205045848,-583.33,0.00017999,2]
[406814418,1772205045857,-583.33,0.00017999,2]
[406814419,1772205045866,-583.41,0.00017999,2]
[406814420,1772205045878,-500.0,0.00017999,2]
[406814421,1772205045887,-500.0,0.00017999,2]
[406814422,1772205045896,-500.0,0.00017999,2]
[406814423,1772205045906,-500.0,0.00017999,2]
[406814424,1772205045916,-500.0,0.00017999,2]
[406814425,1772205045926,-500.0,0.00017999,2]
[406814426,1772205045935,-500.0,0.00017999,2]
[406814427,1772205045945,-500.0,0.00017999,2]
[406814428,1772205045954,-553.51280634,0.00017999,2]
[406814429,1772205045963,-500.0,0.00017999,2]
[406814430,1772205045972,-500.0,0.00017999,2]
[406814431,1772205045982,-500.0,0.00017999,2]
[406814432,1772205045991,-500.0,0.00017999,2]
[406814433,1772205046000,-500.0,0.00017999,2]
[406814434,1772205046009,-500.0,0.00017999,2]
[406814435,1772205046018,-500.0,0.00017999,2]
[406814436,1772205046027,-500.0,0.00017999,2]
[406814437,1772205046036,-500.0,0.00017999,2]
[406814438,1772205046046,-500.0,0.00017999,2]
[406814439,1772205046056,-500.0,0.00017999,2]
[406814440,1772205046065,-500.0,0.00017999,2]
[406814441,1772205046074,-500.0,0.00017999,2]
[406814443,1772205046083,-383.3281671,0.00017999,2]
[406814445,1772205046092,-500.0,0.00017999,2]
[406814447,1772205046101,-500.0,0.00017999,2]
[406814448,1772205046110,-500.0,0.00017999,2]
[406814450,1772205046119,-500.0,0.00017999,2]
[406814452,1772205046128,-500.0,0.00017999,2]
[406814454,1772205046138,-500.0,0.00017999,2]
[406814455,1772205046147,-500.0,0.00017999,2]
[406814456,1772205046156,-500.0,0.00017999,2]
[406814457,1772205046165,-500.0,0.00017999,2]
[406814458,1772205046174,-500.0,0.00017999,2]
[406814459,1772205046183,-500.0,0.00017999,2]
[406814460,1772205046192,-500.0,0.00017999,2]
[406814461,1772205046202,-500.0,0.00017999,2]
[406814462,1772205046211,-500.0,0.00017999,2]
[406814463,1772205046220,-500.0,0.00017999,2]
[406814464,1772205046229,-500.0,0.00017999,2]
[406814465,1772205046238,-500.0,0.00017999,2]
[406814466,1772205046247,-500.0,0.00017999,2]
[406814467,1772205046257,-500.0,0.00017999,2]
[406814468,1772205046266,-500.0,0.00017999,2]
[406814469,1772205046275,-1869261.5257151,0.00018,2]
[406814470,1772205046285,-598369.51207312,0.00018,2]
[406814471,1772205046295,-487.0,0.00018,2]
[406814472,1772205046304,-487.0,0.00018,2]
[406814473,1772205046313,-906.06,0.00018,2]
[406814474,1772205046323,-200.0,0.00018128,2]
[406814475,1772205046332,-211.0,0.00018218,2]
[406814476,1772205046343,-269.0,0.00018424,2]
[406814477,1772205046352,-1000.0,0.00018559,2]
[406814478,1772205046362,-325.0,0.00018596,2]
[406814479,1772205046372,-4773.902077,0.00019052,7]
[406814480,1772205046381,-295.448437,0.00019052,7]
[406814481,1772205046392,-168.595389,0.00019229,7]
[406814482,1772205046402,-1678.061032,0.00019229,7]
[406814483,1772205046411,-673.353075,0.0001938,7]
[406814484,1772205046421,-449.670615,0.00019571,7]
[406814485,1772205046430,-159.05,0.00020564,2]
[406814486,1772205046439,-159.37,0.00021918,30]
[406814487,1772205046449,-509.0,0.00022125,8]
[406814488,1772205046459,-159.05,0.00023134,2]
[406814489,1772205046468,-622.35492982,0.00023483,2]
[406814490,1772205046477,-306.73,0.00023983,2]
[406814491,1772205046487,-150.0,0.00024658,2]
[406814492,1772205046496,-11860.0,0.00025547,2]
[406814493,1772205046506,-159.37,0.00025654,30]
[406814494,1772205046515,-1710.24711264,0.00025795,2]
[406814495,1772205046525,-150.0,0.0002589,2]
[406814496,1772205046535,-500.0,0.00026052,2]
[406814497,1772205046544,-150.0,0.00027185,2]
[406814498,1772205046554,-438.72,0.00027397,20]
[406814499,1772205046564,-150.0,0.00028544,2]
[406814500,1772205046573,-214.78,0.00028616,14]
[406814501,1772205046583,-500.0,0.00028987,120]
[406814502,1772205046592,-500.0,0.00028987,120]
[406814503,1772205046602,-500.0,0.00028987,120]
[406814504,1772205046612,-622.35492982,0.00029067,2]
[406814505,1772205046622,-509.0,0.00029359,14]
[406814506,1772205046631,-670.0,0.00029389,10]
[406814507,1772205046640,-1073.0,0.00029389,10]
[406814508,1772205046649,-159.37,0.0002939,30]
[406814509,1772205046659,-150.0,0.00029971,2]
[406814510,1772205046669,-269.0,0.00030417,2]
[406814512,1772205046678,-500.0,0.00030575,2]
[406814513,1772205046687,-214.78,0.00031267,2]
[406814516,1772205046698,-150.0,0.0003147,2]
[406814517,1772205046709,-154336.0,0.0003185,20]
[406814519,1772205046719,-384.57830706,0.0003186,2]
[406814521,1772205046728,-921.0,0.00032282,2]
[406814523,1772205046737,-1211.0,0.00032282,2]
[406814525,1772205046746,-2456.0,0.00032282,2]
[406814527,1772205046755,-4573.0,0.00032282,2]
[406814529,1772205046764,-150.0,0.000329,30]
[406814531,1772205046775,-161.05,0.000329,14]
[406814533,1772205046786,-238.27,0.000329,14]
[406814535,1772205046795,-406.88,0.000329,14]
[406814537,1772205046804,-154336.0,0.000329,20]
[406814539,1772205046813,-626.67,0.000329,2]
[406814540,1772205046823,-4838.14053136,0.00033,120]
[406814541,1772205046832,-150.0,0.00033043,2]
[406814542,1772205046841,-159.37,0.00033126,30]
[406814543,1772205046851,-306.73,0.00033432,2]
[406814544,1772205046860,-500.0,0.00033699,2]
[406814545,1772205046869,-368.42176142,0.0003394,2]
[406814546,1772205046882,-154336.0,0.0003395,20]
[406814547,1772205046891,-2183.91,0.000343,2]
[406814548,1772205046900,-194.26,0.000345,30]
[406814549,1772205046910,-622.35492982,0.0003465,2]
[406814550,1772205046920,-150.0,0.00034696,2]
[406814551,1772205046929,-1500.0,0.00034795,2]
[406814552,1772205046938,-154336.0,0.00035,20]
[406814553,1772205046947,-916.0,0.00035282,2]
[406814554,1772205046957,-1211.0,0.00035282,2]
[406814555,1772205046966,-1663.438,0.00035282,2]
[406814556,1772205046976,-4573.0,0.00035282,2]
[406814557,1772205046985,-814.998,0.00035397,42]
[406814558,1772205046995,-154336.0,0.0003605,20]
[406814559,1772205047005,-303.28,0.000362,30]
[406814560,1772205047014,-1246.55,0.00036313,10]
[406814561,1772205047023,-150.0,0.0003643,2]
[406814562,1772205047033,-509.0,0.00036593,21]
[406814563,1772205047043,-626.67,0.000366,2]
[406814564,1772205047053,-159.37,0.00036862,30]
[406814565,1772205047201,-154336.0,0.000371,20]
[406814566,1772205047211,-238.27,0.000378,14]
[406814567,1772205047221,-406.88,0.000378,14]
[406814568,1772205047231,-7567.11510619,0.000381,33]
[406814569,1772205047240,-154336.0,0.0003815,20]
[406814570,1772205047250,-150.0,0.00038252,2]
[406814571,1772205047260,-1208.0,0.00038282,2]
[406814572,1772205047269,-4573.0,0.00038282,2]
[406814573,1772205047279,-161.05,0.000383,14]
[406814574,1772205047289,-500.0,0.00038356,3]
[406814575,1772205047300,-500.0,0.0003863,3]
[406814576,1772205047309,-240.00000001,0.00038799,5]
[406814577,1772205047319,-380.57199487,0.00038904,3]
[406814578,1772205047329,-9726.53849063,0.0004,120]
[406814579,1772205047339,-156.0,0.0004,120]
[406814580,1772205047350,-15000.0,0.0004,120]
[406814581,1772205047359,-15000.0,0.0004,120]
[406814582,1772205047369,-150.0,0.00040165,2]
[406814583,1772205047379,-76695.0,0.000402,2]
[406814584,1772205047390,-622.35492982,0.00040233,2]
[406814585,1772205047400,-15000.0,0.000403,120]
[406814586,1772205047410,-15000.0,0.000403,120]
[406814587,1772205047420,-159.37,0.00040598,30]
[406814588,1772205047429,-15000.0,0.000406,120]
[406814589,1772205047439,-15000.0,0.000406,120]
[406814590,1772205047449,-1710.24711264,0.000408,120]
[406814591,1772205047458,-15000.0,0.000409,120]
[406814592,1772205047468,-5364.05,0.000409,120]
[406814593,1772205047478,-122633.019352,0.00041,120]
[406814594,1772205047488,-2496.0,0.00041282,2]
[406814595,1772205047498,-626.67,0.000413,30]
[406814596,1772205047508,-500.0,0.00041396,120]
[406814597,1772205047517,-500.0,0.00041396,120]
[406814598,1772205047527,-500.0,0.00041396,120]
[406814599,1772205047537,-479.11436236,0.00041396,120]
[406814600,1772205047546,-500.0,0.00041396,120]
[406814601,1772205047555,-500.0,0.00041396,120]
[406814602,1772205047565,-500.0,0.00041396,120]
[406814603,1772205047574,-500.0,0.00041396,120]
[406814604,1772205047584,-500.0,0.00041396,120]
[406814605,1772205047594,-500.0,0.00041396,120]
[406814606,1772205047604,-500.0,0.00041396,120]
[406814607,1772205047613,-500.0,0.00041396,120]
[406814608,1772205047623,-500.0,0.00041396,120]
[406814609,1772205047632,-500.0,0.00041396,120]
[406814610,1772205047642,-500.0,0.00041396,120]
[406814611,1772205047651,-494.09872212,0.00041396,120]
[406814612,1772205047661,-500.0,0.00041396,120]
[406814613,1772205047670,-500.0,0.00041396,120]
[406814614,1772205047680,-500.0,0.00041396,120]
[406814615,1772205047690,-596.4968816,0.00041396,120]
[406814616,1772205047699,-32885.2992,0.000414,2]
[406814617,1772205047712,-561.7687,0.000414,120]
[406814618,1772205047722,-1000.0,0.000414,2]
[406814619,1772205047731,-1206.1962,0.000414,120]
[406814620,1772205047740,-5531.0,0.000414,3]
[406814621,1772205047749,-175.22654387,0.00041401,14]
[406814622,1772205047759,-6218.44358929,0.000415,120]
[406814623,1772205047768,-856.45675791,0.0004153,2]
[406814624,1772205047778,-306.29679311,0.0004153,2]
[406814625,1772205047787,-852.28136836,0.0004153,2]
[406814626,1772205047796,-307.55492962,0.0004153,2]
[406814627,1772205047805,-300.0,0.0004153,2]
[406814628,1772205047815,-459.19979016,0.0004153,2]
[406814629,1772205047824,-371.72919772,0.0004153,2]
[406814630,1772205047834,-300.0,0.0004153,2]
[406814631,1772205047844,-519.04834756,0.0004153,2]
[406814632,1772205047853,-306.51036434,0.0004153,2]
[406814633,1772205047863,-300.0,0.0004153,2]
[406814634,1772205047872,-1083.06069021,0.0004153,2]
[406814635,1772205047884,-856.45675791,0.0004153,2]
[406814636,1772205047893,-306.29679311,0.0004153,2]
[406814637,1772205047902,-852.28136836,0.0004153,2]
[406814638,1772205047911,-1565.26887382,0.0004153,2]
[406814639,1772205047920,-307.55492962,0.0004153,2]
[406814640,1772205047930,-300.0,0.0004153,2]
[406814641,1772205047939,-300.0,0.0004153,2]
[406814642,1772205047948,-459.19979016,0.0004153,2]
[406814643,1772205047957,-300.0,0.0004153,2]
[406814644,1772205047966,-300.0,0.0004153,2]
[406814645,1772205047976,-371.72919772,0.0004153,2]
[406814646,1772205047986,-300.0,0.0004153,2]
[406814647,1772205047995,-342.99090995,0.0004153,2]
[406814648,1772205048005,-300.0,0.0004153,2]
[406814649,1772205048014,-419.81311211,0.0004153,2]
[406814650,1772205048024,-519.04834756,0.0004153,2]
[406814651,1772205048033,-306.51036434,0.0004153,2]
[406814652,1772205048042,-538.97683895,0.0004153,2]
[406814653,1772205048052,-300.0,0.0004153,2]
[406814654,1772205048062,-300.0,0.0004153,2]
[406814655,1772205048072,-511.30277196,0.0004153,2]
[406814656,1772205048082,-405.58612148,0.0004153,2]
[406814657,1772205048091,-528.6119758,0.0004153,2]
[406814658,1772205048101,-518.0,0.00041726,2]
[406814659,1772205048110,-238.27,0.000418,14]
[406814660,1772205048120,-406.88,0.000418,14]
[406814661,1772205048130,-1238.0,0.00042,120]
[406814662,1772205048139,-205290.73743388,0.00042,120]
[406814663,1772205048148,-156.0,0.000421,120]
[406814664,1772205048157,-150.0,0.00042173,120]
[406814665,1772205048166,-161.05,0.000426,14]
[406814666,1772205048176,-5531.0,0.000426,5]
[406814667,1772205048185,-10000.0,0.00042701,2]
[406814668,1772205048194,-4000.0,0.0004274,14]
[406814669,1772205048205,-32027.51783631,0.0004288,60]
[406814670,1772205048214,-500.0,0.00043,120]
[406814671,1772205048224,-4023.11668491,0.000431,120]
[406814672,1772205048234,-2035.3881807,0.00043281,7]
[406814673,1772205048244,-2000.0,0.000433,2]
[406814674,1772205048254,-204.48,0.0004366,14]
[406814675,1772205048264,-509.0,0.00043828,27]
[406814676,1772205048274,-25000.0,0.00043882,15]
[406814677,1772205048283,-25000.0,0.00043891,15]
[406814678,1772205048293,-25000.0,0.000439,15]
[406814679,1772205048303,-150.0,0.00044,57]
[406814680,1772205048314,-5064.50238147,0.00044,30]
[406814681,1772205048324,-626.67,0.00044,30]
[406814682,1772205048334,-10268.90836991,0.00044,120]
[406814683,1772205048344,-156.0,0.000441,120]
[406814684,1772205048354,-500.0,0.00044109,120]
[406814685,1772205048364,-500.0,0.00044109,120]
[406814686,1772205048374,-612.67878954,0.00044109,120]
[406814687,1772205048384,-150.0,0.00044281,120]
[406814688,1772205048394,-159.37,0.00044334,120]
[406814689,1772205048404,-204.48,0.0004444,14]
[406814690,1772205048413,-500.0,0.00044986,2]
[406814691,1772205048423,-326.678507,0.00045,120]
[406814692,1772205048433,-500.0,0.00045,120]
[406814693,1772205048442,-1000.0,0.00045,120]
[406814694,1772205048451,-2000.0,0.00045,120]
[406814695,1772205048461,-2000.0,0.00045,120]
[406814696,1772205048470,-2545.37243,0.00045,120]
[406814697,1772205048479,-221787.3890729,0.00045,120]
[406814698,1772205048488,-163.00592101,0.00045,10]
[406814699,1772205048498,-1572.46566508,0.00045078,17]
[406814700,1772205048507,-238.27,0.000451,14]
[406814701,1772205048516,-406.88,0.000451,14]
[406814702,1772205048525,-204.48,0.0004522,14]
[406814703,1772205048535,-1547.3748676,0.00045342,120]
[406814704,1772205048545,-926.0,0.000455,30]
[406814705,1772205048554,-622.35492982,0.00045817,21]
[406814706,1772205048564,-285.18083939,0.00045845,3]
[406814707,1772205048573,-1159.19812235,0.00045996,2]
[406814708,1772205048583,-35900.0,0.00046,120]
[406814709,1772205048592,-53723.696792,0.00046,30]
[406814710,1772205048601,-115645.903801,0.00046096,2]
[406814711,1772205048610,-1478.08,0.00046105,50]
[406814712,1772205048620,-4082.9,0.00046106,120]
[406814713,1772205048629,-1045.63,0.00046106,120]
[406814714,1772205048639,-338.9,0.00046106,120]
[406814715,1772205048648,-223.0,0.00046129,30]
[406814716,1772205048658,-100121.99,0.00046129,30]
[406814717,1772205048668,-500.0,0.00046129,120]
[406814718,1772205048678,-500.0,0.00046129,120]
[406814719,1772205048688,-500.0,0.00046129,120]
[406814720,1772205048697,-500.0,0.00046129,120]
[406814721,1772205048710,-500.0,0.00046129,120]
[406814722,1772205048719,-500.0,0.00046129,120]
[406814723,1772205048728,-500.0,0.00046129,120]
[406814724,1772205048738,-500.0,0.00046129,120]
[406814725,1772205048749,-500.0,0.00046129,120]
[406814726,1772205048758,-500.0,0.00046129,120]
[406814727,1772205048767,-500.0,0.00046129,120]
[406814728,1772205048778,-500.0,0.00046129,120]
[406814729,1772205048787,-500.0,0.00046129,120]
[406814730,1772205048798,-500.0,0.00046129,120]
[406814731,1772205048809,-500.0,0.00046129,120]
[406814732,1772205048820,-481.61699031,0.00046129,120]
[406814733,1772205048831,-155.98239,0.00046129,120]
[406814734,1772205048841,-8195.0,0.00046129,120]
[406814735,1772205048852,-409.38769251,0.00046129,120]
[406814736,1772205048862,-2010.12682262,0.00046129,2]
[406814737,1772205048871,-506.32058647,0.00046129,2]
[406814738,1772205048881,-500.25,0.00046129,30]
[406814739,1772205048891,-3189.57679867,0.00046129,120]
[406814740,1772205048900,-150.0,0.00046129,120]
[406814741,1772205048911,-596.45,0.00046129,120]
[406814742,1772205048920,-596.45,0.00046129,120]
[406814743,1772205048929,-596.45,0.00046129,120]
[406814744,1772205048939,-596.45,0.00046129,120]
[406814745,1772205048948,-596.45,0.00046129,120]
[406814746,1772205048957,-596.45,0.00046129,120]
[406814747,1772205048968,-596.45,0.00046129,120]
[406814748,1772205048977,-596.45,0.00046129,120]
[406814749,1772205048986,-596.45,0.00046129,120]
[406814750,1772205048995,-596.45,0.00046129,120]
[406814751,1772205049005,-596.45,0.00046129,120]
[406814752,1772205049015,-596.45,0.00046129,120]
[406814753,1772205049024,-596.45,0.00046129,120]
[406814754,1772205049035,-596.45,0.00046129,120]
[406814755,1772205049044,-156.0,0.000462,120]
[406814756,1772205049054,-150.0,0.0004635,30]
[406814757,1772205049064,-150.0,0.0004635,30]
[406814758,1772205049075,-172.00374903,0.0004635,30]
[406814759,1772205049085,-176.22011371,0.0004635,30]
[406814760,1772205049094,-150.0,0.0004635,30]
[406814761,1772205049105,-150.0,0.0004635,30]
[406814762,1772205049115,-150.0,0.0004635,30]
[406814763,1772205049125,-150.0,0.0004635,30]
[406814764,1772205049134,-150.0,0.0004635,30]
[406814765,1772205049143,-150.0,0.0004635,30]
[406814766,1772205049152,-150.0,0.0004635,30]
[406814767,1772205049161,-150.0,0.0004635,30]
[406814768,1772205049170,-150.0,0.0004635,30]
[406814769,1772205049180,-150.0,0.0004635,30]
[406814770,1772205049190,-150.0,0.0004635,30]
[406814771,1772205049199,-150.0,0.0004635,30]
[406814772,1772205049208,-150.0,0.0004635,30]
[406814773,1772205049217,-500.0,0.00046356,2]
[406814774,1772205049226,-150.0,0.00046493,30]
[406814775,1772205049236,-150.0,0.00046495,120]
[406814776,1772205049246,-161.05,0.000465,14]
[406814777,1772205049255,-180.34551864,0.00046575,2]
[406814778,1772205049264,-150.0,0.00046636,30]
[406814779,1772205049273,-844.0,0.00046644,120]
[406814780,1772205049282,-150.0,0.00046779,30]
[406814781,1772205049292,-521.78,0.000468,120]
[406814782,1772205049301,-313.29947845,0.00046918,120]
[406814783,1772205049311,-150.0,0.00046922,30]
[406814784,1772205049320,-2000.0,0.00047,2]
[406814785,1772205049330,-150.0,0.00047065,30]
[406814786,1772205049340,-844.0,0.00047192,120]
[406814787,1772205049349,-150.0,0.00047208,30]
[406814788,1772205049358,-150.0,0.00047208,30]
[406814789,1772205049368,-150.0,0.00047351,30]
[406814790,1772205049377,-150.0,0.00047494,30]
[406814791,1772205049386,-152.8213546,0.00047594,120]
[406814792,1772205049396,-150.0,0.00047638,30]
[406814793,1772205049405,-844.0,0.0004774,120]
[406814794,1772205049415,-150.0,0.00047781,30]
[406814795,1772205049424,-150.0,0.00047924,30]
[406814796,1772205049433,-69608.62115198,0.00048,120]
[406814797,1772205049511,-1790.99786457,0.00048,120]
[406814798,1772205049523,-1072.40892871,0.00048,120]
[406814799,1772205049567,-51664.32483519,0.00048,120]
[406814800,1772205049591,-336.14931613,0.00046129,120]
[406814801,1772205049602,-260.30068387,0.00046129,120]
[406814802,1772205049612,-732.02931613,0.00048,120]
[406814803,1772205049623,-457.5810232,0.00048,120]
[406814804,1772205049648,-596.45,0.00046129,120]
[406814805,1772205049657,-205.09783843,0.00048,120]
[406814806,1772205049668,-585.16885174,0.00048,120]
[406814807,1772205049679,-1243.24922899,0.00048,120]
[406814808,1772205049701,-213168.97658963,0.00048,120]
[406814809,1772205049714,-150.0,0.00048067,30]
[406814810,1772205049723,-150.0,0.00048067,30]
[406814811,1772205049732,-159.37,0.0004807,120]
[406814812,1772205049741,-156.0,0.000482,120]
[406814813,1772205049753,-150.0,0.0004821,30]
[406814814,1772205049762,-844.0,0.00048288,120]
[406814815,1772205049772,-150.0,0.00048353,30]
[406814816,1772205049782,-150.0,0.00048496,30]
[406814817,1772205049791,-150.0,0.00048639,30]
[406814818,1772205049800,-150.0,0.00048782,30]
[406814819,1772205049809,-2568.89,0.000488,90]
[406814820,1772205049819,-149701.34535413,0.000488,120]
[406814821,1772205049828,-150.0,0.0004882,120]
[406814822,1772205049836,-844.0,0.00048836,120]
[406814823,1772205049845,-521.78,0.0004884,120]
[406814824,1772205049855,-10209.89997538,0.000489,120]
[406814825,1772205049863,-1185.3385,0.00048925,4]
[406814826,1772205049873,-150.0,0.00048925,30]
[406814827,1772205049882,-150.0,0.00048925,30]
[406814828,1772205049891,-4016.5,0.00049,120]
[406814829,1772205049900,-150.0,0.00049068,30]
[406814830,1772205049909,-33575.51280904,0.000492,120]
[406814831,1772205049918,-150.0,0.00049211,30]
[406814832,1772205049927,-150.0,0.00049354,30]
[406814833,1772205049936,-629.43937662,0.0004937,120]
[406814834,1772205049945,-844.0,0.00049384,120]
[406814835,1772205049954,-150.0,0.00049497,30]
[406814836,1772205049963,-150.0,0.0004964,30]
[406814837,1772205049972,-150.0,0.00049783,30]
[406814838,1772205049981,-150.0,0.00049783,30]
[406814839,1772205049991,-500.0,0.00049856,60]
[406814840,1772205050000,-500.0,0.00049856,60]
[406814841,1772205050009,-500.0,0.00049856,60]
[406814842,1772205050018,-153.78758465,0.000499,2]
[406814843,1772205050028,-384.57830706,0.000499,2]
[406814844,1772205050037,-150.0,0.00049926,30]
[406814845,1772205050047,-350.0,0.00049928,9]
[406814846,1772205050056,-844.0,0.00049932,120]
[406814847,1772205050066,-1086.98147834,0.0005,120]
[406814848,1772205050075,-185.83262235,0.0005,120]
[406814849,1772205050084,-161.28679942,0.0005,120]
[406814850,1772205050093,-260.44728053,0.0005,120]
[406814851,1772205050103,-256.55651153,0.0005,120]
[406814852,1772205050112,-223.8730568,0.0005,120]
[406814853,1772205050122,-1861.95258332,0.0005,120]
[406814854,1772205050132,-426.22802951,0.0005,120]
[406814855,1772205050141,-287.60545485,0.0005,120]
[406814856,1772205050150,-199.24476119,0.0005,120]
[406814857,1772205050160,-242.25,0.0005,40]
[406814858,1772205050170,-1462.92978701,0.0005,120]
[406814859,1772205050179,-37902.36624386,0.0005,120]